fUSD/lending_fUSD_20240217
["ID","MTS","AMOUNT","RATE_DAILY","PERIOD"]
[314327573,1708185043603,-152.0,0.00052159,120]
[314327574,1708185043613,-205.0,0.00052175,21]
[314327575,1708185043622,-180.529012,0.00052257,30]
[314327576,1708185043631,-158.166396,0.00052257,30]
[314327577,1708185043640,-201.06125,0.00052257,30]
[314327578,1708185043650,-196.96001,0.00052257,30]
[314327579,1708185043659,-1996.37427141,0.00052311,13]
[314327580,1708185043668,-11086.94281721,0.00052311,13]
[314327581,1708185043678,-935.93,0.0005245,2]
[314327582,1708185043687,-467.96,0.0005245,2]
[314327583,1708185043696,-160.5505858,0.00052494,29]
[314327584,1708185043709,-2000.0,0.000526,2]
[314327585,1708185043718,-152.0,0.00052707,120]
[314327586,1708185043728,-300.0,0.00052726,2]
[314327587,1708185043737,-321.45276217,0.00052736,2]
[314327588,1708185043746,-1816.578251,0.000528,2]
[314327589,1708185043755,-160.0,0.00052822,120]
[314327590,1708185043764,-3305.65,0.000529,7]
[314327592,1708185043773,-3305.65,0.000529,7]
[314327594,1708185043785,-3305.65,0.000529,7]
[314327596,1708185043794,-3305.65,0.000529,7]
[314327598,1708185043804,-3305.65,0.000529,7]
[314327600,1708185043815,-3305.65,0.000529,7]
[314327602,1708185043827,-3305.65,0.000529,7]
[314327604,1708185043836,-3305.65,0.000529,7]
[314327606,1708185043845,-3305.65,0.000529,7]
[314327608,1708185043855,-3305.65,0.000529,7]
[314327610,1708185043864,-3305.65,0.000529,7]
[314327612,1708185043874,-3305.65,0.000529,7]
[314327614,1708185043883,-3305.65,0.000529,7]
[314327616,1708185043892,-3305.65,0.000529,7]
[314327617,1708185043902,-3305.65,0.000529,7]
[314327618,1708185043911,-3305.65,0.000529,7]
[314327619,1708185043920,-3305.65,0.000529,7]
[314327620,1708185043930,-3305.65,0.000529,7]
[314327621,1708185043939,-3305.65,0.000529,7]
[314327622,1708185043948,-3305.65,0.000529,7]
[314327623,1708185043957,-556.65646275,0.00052935,7]
[314327624,1708185043966,-1532.31123925,0.00052935,7]
[314327625,1708185043975,-423.14938584,0.00052935,7]
[314327626,1708185043984,-1000.0,0.00052935,45]
[314327627,1708185043993,-2329.31280949,0.00052954,8]
[314327628,1708185044003,-1000.0,0.00052954,45]
[314327629,1708185044012,-150.0,0.00053,120]
[314327630,1708185044021,-243.0,0.00053,120]
[314327631,1708185044031,-160.5505858,0.00053124,30]
[314327632,1708185044041,-32126.03826184,0.0005315,7]
[314327633,1708185044050,-205.0,0.00053153,26]
[314327634,1708185044059,-152.0,0.00053255,120]
[314327635,1708185044069,-360.26061453,0.000535,30]
[314327636,1708185044078,-4106.44006467,0.00053511,7]
[314327637,1708185044087,-160.0,0.00053644,120]
[314327638,1708185044096,-160.5505858,0.00053755,31]
[314327639,1708185044105,-152.0,0.00053803,120]
[314327640,1708185044114,-151.289,0.00053829,120]
[314327641,1708185044124,-204.25,0.00053875,2]
[314327642,1708185044133,-205.18,0.000539,7]
[314327643,1708185044142,-152.0,0.00053956,5]
[314327644,1708185044152,-166.32,0.00053999,2]
[314327645,1708185044161,-362.008991,0.00054,55]
[314327646,1708185044170,-150.0,0.00054,120]
[314327647,1708185044179,-150.0,0.00054,120]
[314327648,1708185044188,-2000.0,0.00054,120]
[314327649,1708185044202,-2000.0,0.00054,120]
[314327650,1708185044211,-5000.0,0.00054,120]
[314327651,1708185044220,-20000.0,0.00054,16]
[314327652,1708185044230,-205.0,0.00054131,31]
[314327653,1708185044239,-151.0,0.00054202,2]
[314327654,1708185044248,-152.0,0.00054351,120]
[314327655,1708185044258,-160.5505858,0.00054386,32]
[314327656,1708185044267,-160.0,0.00054466,120]
[314327657,1708185044276,-2543.209552,0.000545,2]
[314327658,1708185044286,-153.07649375,0.00054676,62]
[314327659,1708185044295,-174345.3487,0.00054694,2]
[314327660,1708185044304,-836.3132,0.00054694,2]
[314327661,1708185044313,-210.0,0.000547,2]
[314327662,1708185044323,-500.0,0.00054794,2]
[314327663,1708185044335,-500.0,0.00054794,120]
[314327664,1708185044344,-631.44,0.00054794,2]
[314327665,1708185044354,-500.0,0.00054794,120]
[314327666,1708185044363,-509.41875878,0.00054794,120]
[314327667,1708185044372,-500.0,0.00054794,120]
[314327668,1708185044381,-500.0,0.00054794,120]
[314327669,1708185044390,-522.5849559,0.00054794,120]
[314327670,1708185044399,-500.0,0.00054794,120]
[314327671,1708185044407,-624.76274017,0.00054794,120]
[314327672,1708185044416,-525.89522856,0.00054794,120]
[314327673,1708185044426,-520.64086645,0.00054794,120]
[314327674,1708185044434,-500.0,0.00054794,120]
[314327675,1708185044443,-517.9946921,0.00054794,120]
[314327676,1708185044453,-532.33646259,0.00054794,120]
[314327677,1708185044461,-500.0,0.00054794,120]
[314327678,1708185044471,-509.31221844,0.00054794,120]
[314327679,1708185044480,-12375.24,0.00054794,120]
[314327680,1708185044489,-551.05027365,0.00054794,120]
[314327681,1708185044498,-510.20013802,0.00054794,120]
[314327682,1708185044507,-516.84946426,0.00054794,120]
[314327683,1708185044516,-500.0,0.00054794,120]
[314327684,1708185044525,-549.60293992,0.00054794,120]
[314327685,1708185044535,-521.54226843,0.00054794,120]
[314327686,1708185044544,-527.02637147,0.00054794,120]
[314327687,1708185044589,-575.07018521,0.00054794,120]
[314327688,1708185044598,-512.24426713,0.00054794,120]
[314327689,1708185044608,-4000.0,0.00054794,120]
[314327690,1708185044617,-518.55003422,0.00054794,120]
[314327691,1708185044626,-521.18448768,0.00054794,120]
[314327692,1708185044635,-529.96515233,0.00054794,120]
[314327693,1708185044644,-500.0,0.00054794,120]
[314327694,1708185044653,-541.49068682,0.00054794,120]
[314327695,1708185044663,-573.17259829,0.00054794,120]
[314327696,1708185044672,-500.0,0.00054794,120]
[314327697,1708185044681,-524.2725172,0.00054794,120]
[314327698,1708185044690,-535.29399655,0.00054794,120]
[314327699,1708185044700,-562.66471069,0.00054794,120]
[314327700,1708185044712,-500.0,0.00054794,120]
[314327701,1708185044721,-551.20472487,0.00054794,120]
[314327702,1708185044731,-559.82237517,0.00054794,120]
[314327703,1708185044741,-500.0,0.00054794,7]
[314327704,1708185044750,-432.86313815,0.00054794,120]
[314327705,1708185044759,-500.0,0.00054794,120]
[314327706,1708185044768,-516.17322659,0.00054794,120]
[314327707,1708185044780,-316.89562897,0.00054794,120]
[314327708,1708185044789,-500.0,0.00054794,120]
[314327709,1708185044798,-500.0,0.00054794,120]
[314327710,1708185044807,-507.39890145,0.00054794,120]
[314327711,1708185044816,-500.0,0.00054794,120]
[314327712,1708185044825,-500.0,0.00054794,120]
[314327713,1708185044834,-574.02003823,0.00054794,120]
[314327714,1708185044843,-522.39098309,0.00054794,120]
[314327715,1708185044852,-525.13269746,0.00054794,120]
[314327716,1708185044861,-519.18415384,0.00054794,120]
[314327717,1708185044870,-503.00157731,0.00054794,120]
[314327718,1708185044879,-500.0,0.00054794,120]
[314327719,1708185044887,-590.70851985,0.00054794,120]
[314327720,1708185044898,-521.75057454,0.00054794,120]
[314327721,1708185044907,-500.0,0.00054794,120]
[314327722,1708185044916,-553.77728986,0.00054794,120]
[314327723,1708185044925,-528.66440821,0.00054794,120]
[314327724,1708185044935,-532.68752622,0.00054794,120]
[314327725,1708185044944,-464.71887867,0.00054794,120]
[314327726,1708185044953,-533.2785524,0.00054794,120]
[314327727,1708185044962,-500.0,0.00054794,120]
[314327728,1708185044971,-538.10259761,0.00054794,120]
[314327729,1708185044981,-648.88669178,0.00054794,120]
[314327730,1708185044990,-499.27070265,0.00054794,120]
[314327731,1708185044999,-500.0,0.00054794,120]
[314327732,1708185045008,-500.0,0.00054794,120]
[314327733,1708185045017,-500.0,0.00054794,120]
[314327734,1708185045026,-500.0,0.00054794,120]
[314327735,1708185045038,-500.0,0.00054794,120]
[314327736,1708185045047,-500.0,0.00054794,120]
[314327737,1708185045057,-500.0,0.00054794,120]
[314327738,1708185045066,-500.0,0.00054794,120]
[314327739,1708185045076,-602.59965636,0.00054794,120]
[314327740,1708185045086,-500.0,0.00054794,120]
[314327741,1708185045095,-500.0,0.00054794,120]
[314327742,1708185045105,-500.0,0.00054794,120]
[314327743,1708185045114,-500.0,0.00054794,120]
[314327744,1708185045123,-500.0,0.00054794,120]
[314327745,1708185045133,-500.0,0.00054794,120]
[314327746,1708185045142,-547.20419848,0.00054794,120]
[314327747,1708185045151,-525.01916273,0.00054794,120]
[314327748,1708185045160,-500.0,0.00054794,120]
[314327749,1708185045170,-544.71208913,0.00054794,120]
[314327750,1708185045188,-500.0,0.00054794,120]
[314327751,1708185045200,-500.0,0.00054794,120]
[314327752,1708185045210,-500.0,0.00054794,120]
[314327753,1708185045219,-541.18312316,0.00054794,120]
[314327754,1708185045229,-541.96788447,0.00054794,120]
[314327755,1708185045238,-500.0,0.00054794,2]
[314327756,1708185045247,-500.0,0.00054794,120]
[314327757,1708185045256,-500.0,0.00054794,120]
[314327758,1708185045265,-500.0,0.00054794,120]
[314327759,1708185045275,-538.82814425,0.00054794,120]
[314327760,1708185045284,-500.0,0.00054794,120]
[314327761,1708185045294,-199.58004,0.00054794,2]
[314327762,1708185045303,-500.0,0.00054794,2]
[314327763,1708185045312,-500.0,0.00054794,120]
[314327764,1708185045321,-500.0,0.00054794,120]
[314327765,1708185045330,-500.0,0.00054794,120]
[314327766,1708185045339,-500.0,0.00054794,120]
[314327767,1708185045348,-500.0,0.00054794,120]
[314327768,1708185045356,-500.0,0.00054794,120]
[314327769,1708185045366,-500.0,0.00054794,120]
[314327770,1708185045375,-500.0,0.00054794,120]
[314327771,1708185045384,-500.0,0.00054794,120]
[314327772,1708185045393,-712.65,0.00054794,7]
[314327773,1708185045403,-500.0,0.00054794,120]
[314327774,1708185045412,-400.0,0.00054794,120]
[314327775,1708185045422,-500.0,0.00054794,120]
[314327776,1708185045431,-500.0,0.00054794,120]
[314327777,1708185045440,-500.0,0.00054794,2]
[314327778,1708185045449,-500.0,0.00054794,120]
[314327779,1708185045458,-500.0,0.00054794,120]
[314327780,1708185045467,-500.0,0.00054794,120]
[314327781,1708185045476,-500.0,0.00054794,120]
[314327782,1708185045485,-500.0,0.00054794,120]
[314327783,1708185045494,-500.0,0.00054794,120]
[314327784,1708185045503,-341.19224171,0.00054794,120]
[314327785,1708185045512,-500.0,0.00054794,120]
[314327786,1708185045521,-500.0,0.00054794,120]
[314327787,1708185045530,-500.0,0.00054794,120]
[314327788,1708185045539,-500.0,0.00054794,120]
[314327789,1708185045549,-500.0,0.00054794,120]
[314327790,1708185045558,-500.0,0.00054794,120]
[314327791,1708185045567,-600.0,0.00054794,120]
[314327792,1708185045577,-500.0,0.00054794,120]
[314327793,1708185045586,-500.0,0.00054794,120]
[314327794,1708185045595,-1000.0,0.00054794,7]
[314327795,1708185045604,-500.0,0.00054794,120]
[314327797,1708185045614,-500.0,0.00054794,120]
[314327798,1708185045623,-500.0,0.00054794,120]
[314327799,1708185045631,-500.0,0.00054794,120]
[314327800,1708185045641,-525.37995574,0.00054794,120]
[314327801,1708185045650,-489.67943093,0.00054794,120]
[314327802,1708185045659,-552.82396325,0.00054794,120]
[314327804,1708185045668,-500.0,0.00054794,120]
[314327805,1708185045678,-500.0,0.00054794,120]
[314327806,1708185045687,-500.0,0.00054794,120]
[314327807,1708185045696,-500.0,0.00054794,120]
[314327808,1708185045709,-517.58227991,0.00054794,120]
[314327809,1708185045718,-500.0,0.00054794,120]
[314327810,1708185045728,-500.0,0.00054794,120]
[314327811,1708185045737,-250.0,0.00054794,60]
[314327812,1708185045747,-250.0,0.00054794,70]
[314327813,1708185045756,-500.0,0.00054794,120]
[314327814,1708185045766,-500.0,0.00054794,120]
[314327815,1708185045774,-500.0,0.00054794,120]
[314327816,1708185045786,-500.0,0.00054794,120]
[314327817,1708185045795,-702.13858382,0.00054794,120]
[314327818,1708185045804,-500.0,0.00054794,120]
[314327819,1708185045813,-500.0,0.00054794,120]
[314327820,1708185045822,-1000.0,0.00054794,30]
[314327821,1708185045832,-500.0,0.00054794,120]
[314327822,1708185045841,-500.0,0.00054794,120]
[314327823,1708185045850,-545.87976051,0.00054794,120]
[314327824,1708185045859,-500.0,0.00054794,120]
[314327825,1708185045868,-545.28716769,0.00054794,120]
[314327826,1708185045877,-500.0,0.00054794,120]
[314327827,1708185045886,-500.0,0.00054794,120]
[314327828,1708185045899,-540.68488322,0.00054794,120]
[314327829,1708185045908,-518.62396801,0.00054794,120]
[314327830,1708185045917,-500.0,0.00054794,120]
[314327831,1708185045926,-549.95997327,0.00054794,120]
[314327832,1708185045936,-598.42691498,0.00054794,120]
[314327833,1708185045945,-1000.0,0.00054794,7]
[314327834,1708185045954,-500.0,0.00054794,120]
[314327835,1708185045963,-500.0,0.00054794,120]
[314327836,1708185045973,-157.32709944,0.00054794,7]
[314327837,1708185045982,-500.0,0.00054794,120]
[314327838,1708185045993,-500.0,0.00054794,120]
[314327839,1708185046002,-500.0,0.00054794,120]
[314327840,1708185046011,-503.07614817,0.00054794,120]
[314327841,1708185046021,-500.0,0.00054794,120]
[314327842,1708185046030,-269.40639238,0.00054794,120]
[314327843,1708185046039,-562.38405658,0.00054794,120]
[314327844,1708185046048,-500.0,0.00054794,120]
[314327845,1708185046058,-500.0,0.00054794,120]
[314327846,1708185046067,-500.0,0.00054794,120]
[314327847,1708185046077,-552.28353946,0.00054794,120]
[314327848,1708185046086,-500.0,0.00054794,120]
[314327849,1708185046096,-533.43335921,0.00054794,120]
[314327850,1708185046105,-500.0,0.00054794,120]
[314327851,1708185046115,-500.0,0.00054794,120]
[314327852,1708185046124,-500.0,0.00054794,120]
[314327853,1708185046134,-522.18703012,0.00054794,120]
[314327854,1708185046144,-404.07000559,0.00054794,120]
[314327855,1708185046153,-558.44775531,0.00054794,120]
[314327856,1708185046162,-473.21293111,0.00054794,120]
[314327857,1708185046172,-500.0,0.00054794,120]
[314327858,1708185046181,-500.0,0.00054794,120]
[314327859,1708185046191,-500.0,0.00054794,120]
[314327860,1708185046200,-542.51529725,0.00054794,120]
[314327861,1708185046209,-535.95951786,0.00054794,120]
[314327862,1708185046218,-500.0,0.00054794,120]
[314327863,1708185046227,-251.14872431,0.00054794,120]
[314327864,1708185046237,-512.21867618,0.00054794,120]
[314327865,1708185046246,-150.0,0.00054794,120]
[314327866,1708185046255,-507.45173941,0.00054794,120]
[314327867,1708185046265,-572.48281566,0.00054794,120]
[314327868,1708185046274,-500.0,0.00054794,120]
[314327869,1708185046285,-624.61673098,0.00054794,120]
[314327870,1708185046294,-546.31711893,0.00054794,120]
[314327871,1708185046303,-500.0,0.00054794,30]
[314327872,1708185046313,-500.0,0.00054794,120]
[314327873,1708185046322,-500.0,0.00054794,2]
[314327874,1708185046331,-500.0,0.00054794,120]
[314327875,1708185046340,-500.0,0.00054794,120]
[314327876,1708185046349,-512.33358062,0.00054794,120]
[314327877,1708185046358,-500.0,0.00054794,120]
[314327878,1708185046367,-500.0,0.00054794,2]
[314327879,1708185046376,-500.0,0.00054794,120]
[314327880,1708185046386,-513.33210425,0.00054794,120]
[314327881,1708185046395,-1000.0,0.00054794,120]
[314327882,1708185046404,-306.89193173,0.00054794,120]
[314327883,1708185046413,-500.0,0.00054794,120]
[314327884,1708185046422,-500.0,0.00054794,120]
[314327885,1708185046434,-507.99460736,0.00054794,7]
[314327886,1708185046443,-535.81607861,0.00054794,120]
[314327887,1708185046453,-509.84399914,0.00054794,120]
[314327888,1708185046462,-500.0,0.00054794,120]
[314327889,1708185046472,-537.13615495,0.00054794,120]
[314327890,1708185046481,-500.0,0.00054794,120]
[314327891,1708185046490,-518.61050765,0.00054794,120]
[314327892,1708185046499,-500.0,0.00054794,120]
[314327893,1708185046509,-544.51435272,0.00054794,120]
[314327894,1708185046518,-500.0,0.00054794,120]
[314327895,1708185046527,-196.65743216,0.00054794,120]
[314327896,1708185046538,-500.0,0.00054794,120]
[314327897,1708185046548,-500.0,0.00054794,120]
[314327898,1708185046557,-502.71281984,0.00054794,60]
[314327899,1708185046566,-500.0,0.00054794,120]
[314327900,1708185046576,-317.36512283,0.00054794,120]
[314327901,1708185046585,-500.0,0.00054794,120]
[314327902,1708185046594,-212.9669228,0.00054794,120]
[314327903,1708185046604,-500.0,0.00054794,120]
[314327904,1708185046613,-510.70103441,0.00054794,120]
[314327905,1708185046622,-500.0,0.00054794,120]
[314327906,1708185046632,-500.0,0.00054794,120]
[314327907,1708185046641,-510.55731729,0.00054794,120]
[314327908,1708185046651,-500.0,0.00054794,120]
[314327909,1708185046660,-500.0,0.00054794,120]
[314327910,1708185046669,-500.0,0.00054794,120]
[314327911,1708185046679,-494.2555993,0.00054794,120]
[314327912,1708185046689,-503.16608839,0.00054794,120]
[314327913,1708185046700,-500.0,0.00054794,120]
[314327914,1708185046713,-500.0,0.00054794,120]
[314327915,1708185046723,-500.0,0.00054794,120]
[314327916,1708185046733,-500.0,0.00054794,120]
[314327917,1708185046743,-500.0,0.00054794,120]
[314327918,1708185046752,-500.0,0.00054794,120]
[314327919,1708185046761,-566.42358745,0.00054794,120]
[314327920,1708185046770,-1250.97,0.00054794,120]
[314327921,1708185046782,-533.33566868,0.00054794,60]
[314327922,1708185046792,-500.0,0.00054794,120]
[314327923,1708185046802,-500.0,0.00054794,120]
[314327924,1708185046811,-555.44200631,0.00054794,120]
[314327925,1708185046821,-642.69094484,0.00054794,120]
[314327926,1708185046831,-500.0,0.00054794,120]
[314327927,1708185046840,-500.0,0.00054794,120]
[314327928,1708185046851,-530.46648344,0.00054794,120]
[314327929,1708185046861,-500.0,0.00054794,120]
[314327930,1708185046870,-553.30299236,0.00054794,120]
[314327931,1708185046879,-500.0,0.00054794,120]
[314327932,1708185046888,-405.46857021,0.00054794,120]
[314327933,1708185046897,-240.20627516,0.00054794,120]
[314327934,1708185046907,-500.0,0.00054794,120]
[314327935,1708185046918,-461.21660472,0.00054794,120]
[314327936,1708185046929,-500.0,0.00054794,2]
[314327937,1708185046940,-500.0,0.00054794,120]
[314327938,1708185046950,-500.0,0.00054794,120]
[314327939,1708185046965,-529.07467007,0.00054794,120]
[314327940,1708185046975,-589.7800519,0.00054794,120]
[314327941,1708185046986,-502.21977717,0.00054794,2]
[314327942,1708185046996,-500.0,0.00054794,120]
[314327943,1708185047006,-500.0,0.00054794,120]
[314327944,1708185047016,-500.0,0.00054794,120]
[314327945,1708185047026,-500.0,0.00054794,120]
[314327946,1708185047036,-524.39353,0.00054794,120]
[314327947,1708185047045,-500.0,0.00054794,120]
[314327948,1708185047055,-500.0,0.00054794,120]
[314327949,1708185047065,-500.0,0.00054794,120]
[314327950,1708185047075,-500.0,0.00054794,120]
[314327951,1708185047085,-523.44883114,0.00054794,120]
[314327952,1708185047096,-521.13602845,0.00054794,120]
[314327953,1708185047106,-632.43,0.00054794,120]
[314327954,1708185047117,-500.0,0.00054794,120]
[314327955,1708185047126,-424.78890762,0.00054794,120]
[314327956,1708185047136,-500.0,0.00054794,120]
[314327957,1708185047145,-530.49008151,0.00054794,120]
[314327958,1708185047155,-500.0,0.00054794,120]
[314327959,1708185047165,-525.54881652,0.00054794,120]
[314327960,1708185047175,-500.0,0.00054794,120]
[314327961,1708185047185,-500.0,0.00054794,120]
[314327962,1708185047196,-541.50583576,0.00054794,120]
[314327963,1708185047206,-500.0,0.00054794,120]
[314327964,1708185047216,-500.0,0.00054794,120]
[314327965,1708185047226,-500.0,0.00054794,120]
[314327966,1708185047236,-507.75064367,0.00054794,120]
[314327967,1708185047245,-500.0,0.00054794,120]
[314327968,1708185047255,-500.0,0.00054794,120]
[314327969,1708185047265,-519.17862808,0.00054794,120]
[314327970,1708185047275,-500.0,0.00054794,120]
[314327971,1708185047285,-498.92018048,0.00054794,120]
[314327972,1708185047296,-313.70492157,0.00054794,120]
[314327973,1708185047305,-519.44408238,0.00054794,120]
[314327974,1708185047315,-500.0,0.00054794,120]
[314327975,1708185047324,-500.0,0.00054794,120]
[314327976,1708185047334,-500.0,0.00054794,120]
[314327977,1708185047345,-509.12610304,0.00054794,120]
[314327978,1708185047356,-500.0,0.00054794,120]
[314327979,1708185047368,-548.85442974,0.00054794,120]
[314327980,1708185047378,-3456.26,0.00054794,120]
[314327981,1708185047389,-323.46401023,0.00054794,120]
[314327982,1708185047399,-300.95615346,0.00054794,120]
[314327983,1708185047408,-500.0,0.00054794,120]
[314327984,1708185047418,-510.42660065,0.00054794,120]
[314327985,1708185047427,-535.39893865,0.00054794,120]
[314327986,1708185047437,-500.0,0.00054794,120]
[314327987,1708185047447,-500.0,0.00054794,120]
[314327988,1708185047457,-500.0,0.00054794,120]
[314327989,1708185047468,-509.61464899,0.00054794,120]
[314327990,1708185047478,-558.57814119,0.00054794,120]
[314327991,1708185047490,-500.0,0.00054794,120]
[314327992,1708185047500,-500.0,0.00054794,120]
[314327993,1708185047512,-500.0,0.00054794,120]
[314327994,1708185047524,-500.0,0.00054794,120]
[314327995,1708185047535,-3914.34,0.00054794,120]
[314327996,1708185047545,-500.0,0.00054794,120]
[314327997,1708185047556,-282.8206388,0.00054794,120]
[314327998,1708185047567,-536.73753223,0.00054794,120]
[314327999,1708185047578,-500.0,0.00054794,120]
[314328000,1708185047588,-500.0,0.00054794,120]
[314328001,1708185047597,-500.0,0.00054794,14]
[314328002,1708185047607,-500.0,0.00054794,120]
[314328003,1708185047618,-500.0,0.00054794,120]
[314328004,1708185047629,-500.0,0.00054794,120]
[314328005,1708185047640,-500.0,0.00054794,120]
[314328006,1708185047650,-500.0,0.00054794,120]
[314328007,1708185047659,-500.0,0.00054794,120]
[314328008,1708185047670,-500.0,0.00054794,120]
[314328009,1708185047680,-500.0,0.00054794,120]
[314328010,1708185047689,-500.0,0.00054794,120]
[314328011,1708185047701,-632.05038922,0.00054794,120]
[314328012,1708185047714,-500.0,0.00054794,120]
[314328013,1708185047723,-517.69436096,0.00054794,120]
[314328014,1708185047735,-500.0,0.00054794,120]
[314328015,1708185047748,-500.0,0.00054794,120]
[314328016,1708185047759,-500.0,0.00054794,120]
[314328017,1708185047769,-500.0,0.00054794,120]
[314328018,1708185047779,-525.89740978,0.00054794,120]
[314328019,1708185047790,-566.11653482,0.00054794,120]
[314328020,1708185047802,-524.45843297,0.00054794,120]
[314328021,1708185047811,-500.0,0.00054794,120]
[314328022,1708185047821,-509.0460758,0.00054794,120]
[314328023,1708185047830,-500.0,0.00054794,120]
[314328024,1708185047840,-500.0,0.00054794,120]
[314328025,1708185047849,-415.4926533,0.00054794,120]
[314328026,1708185047859,-500.0,0.00054794,120]
[314328027,1708185047868,-500.0,0.00054794,120]
[314328028,1708185047878,-500.0,0.00054794,120]
[314328029,1708185047887,-500.0,0.00054794,120]
[314328030,1708185047898,-500.0,0.00054794,120]
[314328031,1708185047908,-537.06737215,0.00054794,120]
[314328032,1708185047918,-500.0,0.00054794,120]
[314328033,1708185047927,-500.0,0.00054794,120]
[314328034,1708185047937,-524.66876978,0.00054794,120]
[314328035,1708185047947,-500.0,0.00054794,120]
[314328036,1708185047957,-646.15,0.00054794,120]
[314328037,1708185047967,-500.0,0.00054794,120]
[314328038,1708185047976,-500.0,0.00054794,120]
[314328039,1708185047986,-500.0,0.00054794,120]
[314328040,1708185047997,-500.0,0.00054794,120]
[314328041,1708185048006,-500.0,0.00054794,120]
[314328042,1708185048015,-500.0,0.00054794,120]
[314328043,1708185048025,-500.0,0.00054794,120]
[314328044,1708185048036,-500.0,0.00054794,120]
[314328045,1708185048046,-500.0,0.00054794,120]
[314328046,1708185048056,-500.0,0.00054794,120]
[314328047,1708185048065,-520.93396564,0.00054794,120]
[314328048,1708185048076,-524.03356389,0.00054794,120]
[314328049,1708185048085,-285.93860935,0.00054794,120]
[314328050,1708185048095,-500.0,0.00054794,120]
[314328051,1708185048104,-553.16004552,0.00054794,120]
[314328052,1708185048114,-281.26910789,0.00054794,120]
[314328053,1708185048123,-500.0,0.00054794,120]
[314328054,1708185048133,-500.0,0.00054794,120]
[314328055,1708185048142,-574.86008452,0.00054794,120]
[314328056,1708185048152,-500.0,0.00054794,120]
[314328057,1708185048161,-698.16,0.00054794,120]
[314328058,1708185048171,-500.0,0.00054794,120]
[314328059,1708185048181,-500.0,0.00054794,120]
[314328060,1708185048190,-535.02644965,0.00054794,120]
[314328061,1708185048200,-500.0,0.00054794,120]
[314328062,1708185048210,-500.0,0.00054794,120]
[314328063,1708185048220,-500.0,0.00054794,120]
[314328064,1708185048231,-500.0,0.00054794,120]
[314328065,1708185048241,-500.0,0.00054794,120]
[314328066,1708185048252,-500.0,0.00054794,120]
[314328067,1708185048262,-500.0,0.00054794,120]
[314328068,1708185048272,-535.15496341,0.00054794,120]
[314328069,1708185048282,-500.0,0.00054794,120]
[314328070,1708185048291,-474.61864417,0.00054794,120]
[314328071,1708185048301,-543.960623,0.00054794,120]
[314328072,1708185048312,-300.0,0.00054794,120]
[314328073,1708185048321,-885.16468462,0.00054794,3]
[314328074,1708185048331,-500.0,0.00054794,120]
[314328075,1708185048341,-500.0,0.00054794,120]
[314328076,1708185048350,-529.23879601,0.00054794,120]
[314328077,1708185048359,-500.0,0.00054794,7]
[314328078,1708185048369,-500.0,0.00054794,120]
[314328079,1708185048379,-500.0,0.00054794,120]
[314328080,1708185048388,-500.0,0.00054794,120]
[314328081,1708185048398,-500.0,0.00054794,120]
[314328082,1708185048408,-500.0,0.00054794,120]
[314328083,1708185048417,-500.0,0.00054794,120]
[314328084,1708185048427,-500.0,0.00054794,120]
[314328085,1708185048436,-500.0,0.00054794,120]
[314328086,1708185048446,-500.0,0.00054794,120]
[314328087,1708185048455,-500.0,0.00054794,120]